Cogmind - Beta 15 @@@ ROGUE MODE // 2025.06.05 @ 19:44:53 Player: SK CalmBar Result: Destroyed self with Grenade Launcher Performance ------------- Evolutions (1) 500 Regions Visited (2) 400 Robots Destroyed (20) 100 Value Destroyed (494) 494 Prototype IDs (1) 20 Alien Tech Used (0) 0 Bonus (0) 0 TOTAL SCORE: 1514 Bonus ------- None Cogmind --------- Core Integrity 0/400 Matter 260/300 Energy 83/100 System Corruption 8% Temperature Cool (0) Movement Core (750) Ox14 Location -9/Materials Parts ------- > --- POWER (1) -------- (None) > --- PROPULSION (3) --- (None) > --- UTILITY (3) ------ High-capacity Storage Unit > --- WEAPON (2) ------- Light Assault Rifle Grenade Launcher > --- INVENTORY (20) --- Ion Engine Light Ion Engine Heavy Ion Engine Small Storage Unit Medium Storage Unit Large Storage Unit Improved Targeting Computer Peak State ------------ > --- POWER ------------ Heavy Ion Engine > --- PROPULSION ------- Aluminum Leg Aluminum Leg Aluminum Leg > --- UTILITY ---------- High-capacity Storage Unit Weight Redist. System Improved Targeting Computer > --- WEAPON ----------- Beam Rifle Autogun > --- INVENTORY -------- Ion Engine Light Ion Engine Light Ion Engine Light Treads Small Storage Unit Medium Storage Unit Large Storage Unit Light Assault Rifle Light Assault Rifle Grenade Launcher Rocket Launcher [Rating: 16] Favorites ----------- Power Light Ion Engine Engine Light Ion Engine Propulsion Aluminum Leg Treads Light Treads Leg Aluminum Leg Utility Weight Redist. System Device Weight Redist. System Storage High-capacity Storage Unit Processor Improved Targeting Computer Protection Power Shielding Weapon Medium Laser Energy Gun Medium Laser Ballistic Gun Assault Rifle Launcher Rocket Launcher Build | -11 -10 -9 ------- Run | Yrd Mat Mat Slots Evolved 2 | . . 2 Power . | . . . Propulsion 1 | . . 1 Utility 1 | . . 1 Weapon . | . . . Parts Attached 24 | 6 5 13 Power 3 | 1 1 1 Engine 3 | 1 1 1 Core . | . . . Reactor . | . . . Propulsion 5 | 2 . 3 Treads 1 | . . 1 Leg 4 | 2 . 2 Wheel . | . . . Hover . | . . . Flight . | . . . Utility 8 | 1 4 3 Device 1 | . 1 . Storage 4 | 1 2 1 Processor 1 | . . 1 Hackware . | . . . Protection 2 | . 1 1 Artifact . | . . . Weapon 8 | 2 . 6 Energy Gun 2 | 1 . 1 Energy Cannon . | . . . Ballistic Gun 4 | 1 . 3 Ballistic Cannon . | . . . Launcher 2 | . . 2 Special Weapon . | . . . Impact Weapon . | . . . Slashing Weapon . | . . . Piercing Weapon . | . . . Special Melee Weapon . | . . . Unidentified Prototypes 1 | . . 1 Parts Lost 11 | . . 11 Power 1 | . . 1 Propulsion 4 | . . 4 Utility 2 | . . 2 Weapon 4 | . . 4 Highest Loss Streak 10 | . . 10 To Critical Strikes . | . . . Average Backups 9 | 4 9 10 Power 2 | . 1 2 Propulsion 2 | 2 3 . Utility 2 | . 1 3 Weapon 2 | . 2 3 Tool/Special . | . . . Unused Backups 9 | . 4 5 Power 3 | . . 3 Propulsion 4 | . 4 . Utility 1 | . . 1 Weapon 1 | . . 1 Tool/Special . | . . . Average Slot Usage (%) 88 | . 94 84 Engine 12 | . 14 10 Leg 27 | . 28 27 Device 8 | . 9 8 Storage 12 | . 14 11 Processor 2 | . . 4 Energy Gun 11 | . 14 9 Ballistic Gun 12 | . 14 11 Peak Build Rating 16 | 6 9 16 Average Rating 9 | 4 7 11 On Entrance 5 | . 6 9 Naked Turns . | . . . Heaviest Build 54 | 12 27 54 Greatest Support 36 | 20 26 36 Greatest Overweight (x) 14 | . 1 14 Average Overweight (x) . | . . . Largest Inventory Capacity 20 | 8 15 20 Average Capacity 14 | 7 9 18 Most Carried 12 | 7 10 12 Average Carried 9 | 4 9 10 Final Capacity 20 | 8 10 20 Final Carried 10 | 6 10 7 Class Distribution -------------------- 100% | Mutant Dominant Class ---------------- Mutant | -10/Materials Mutant | -9/Materials Resources | -11 -10 -9 ----------- Run | Yrd Mat Mat Matter Collected 663 | 260 135 268 Remotely . | . . . Salvage Created 656 | . 174 482 Parts 36 | . 13 23 Haulers Intercepted 1 | . 1 . Recyclers Shooed 2 | . . 2 Parts Field Recycled . | . . . Retrieved Matter . | . . . Parts Self-Destructed . | . . . Prevented . | . . . Kills | -11 -10 -9 ------- Run | Yrd Mat Mat Combat Hostiles Destroyed 17 | . 6 11 Guns 15 | . 6 9 AOE 2 | . . 2 Classes Destroyed 6 | . 4 2 Builder 2 | . 1 1 Hauler 1 | . 1 . Swarmer 5 | . 5 . Grunt 9 | . 1 8 Brawler 1 | . . 1 Sentry 2 | . . 2 Best Kill Streak 4 | . 2 4 Combat Bots Only 3 | . 2 3 Max Kills in Single Turn 1 | . 1 1 Gunslinging . | . . . Exploded 1 | . . 1 Melee . | . . . Uniques/NPCs Destroyed . | . . . Combat | -11 -10 -9 -------- Run | Yrd Mat Mat Hostile Shots Fired 165 | . 36 129 Missed 40 | . 12 28 Hits 125 | . 24 101 Melee 2 | . . 2 Projectile 123 | . 24 99 Critical Strikes 2 | . . 2 Damage Taken 1581 | . 198 1383 Core 424 | . 21 403 Absorbed by Shields . | . . . Core Remaining (%) 95 | 100 91 . Volleys Fired 69 | . 25 44 Largest 2 | . 2 2 Hottest 79 | . 70 79 Shots Fired 119 | . 44 75 Gun 115 | . 44 71 Cannon . | . . . Launcher 4 | . . 4 Special . | . . . Kinetic 69 | . 25 44 Thermal 46 | . 19 27 Explosive 4 | . . 4 Electromagnetic . | . . . Robot Hit Streak 8 | . 5 8 Robot Miss Streak 5 | . 5 3 Penetration Max . | . . . Secondary Targets 1 | . 1 . Max Gunslinging Chain 1 | . 1 . Shots Hit Robots 67 | . 18 49 Core Hits 31 | . 9 22 Critical Kills . | . . . Critical Parts Destroyed . | . . . Critical Strikes 5 | . 1 4 Burn 5 | . 1 4 Melee Attacks . | . . . Impact . | . . . Slashing . | . . . Piercing . | . . . Sneak Attacks . | . . . Combat Hostiles . | . . . Follow-up Attacks . | . . . Damage Inflicted 1097 | . 239 858 Guns 942 | . 239 703 Cannons . | . . . Explosions 155 | . . 155 Melee . | . . . Ramming . | . . . Kinetic 557 | . 138 419 Thermal 385 | . 101 284 Explosive 155 | . . 155 Electromagnetic . | . . . Impact . | . . . Slashing . | . . . Piercing . | . . . Highest Corruption 8 | . . 8 Average Corruption 7 | . . 7 Corruption Purged . | . . . Corruption Blocked . | . . . Effects 4 | . . 4 Matter Fused 2 | . . 2 Energy Discharges 1 | . . 1 Weapon Failures 1 | . . 1 Overload Shots . | . . . Overflow Damage 3 | . . 3 Projectiles . | . . . Explosions 3 | . . 3 Melee . | . . . Knockbacks . | . . . Impact . | . . . Kinetic . | . . . Secondary . | . . . Self-Inflicted Damage 99 | . . 99 Shots 4 | . . 4 Rammed . | . . . Targets Rammed . | . . . Kicked . | . . . Crushed . | . . . Highest Temperature 216 | . 45 216 Average Temperature 55 | . 15 74 Received Heat Transfer 582 | . 12 570 Siege Activations . | . . . Martial Activations . | . . . Shielding Activations . | . . . Robots Disrupted . | . . . Combat Hostiles . | . . . Robots Corrupted . | . . . Combat Hostiles . | . . . Parts Fried . | . . . Impact Corruptions . | . . . Robots Melted . | . . . Combat Hostiles . | . . . Parts Melted 5 | . . 5 Heat Transferred 1406 | . 370 1036 Parts Sabotaged . | . . . Parts Stolen . | . . . Parts Stripped . | . . . Power Chain Reactions . | . . . Alert | -11 -10 -9 ------- Run | Yrd Mat Mat Maximum Alert Level . | . . . Low Security (%) 100 | 100 100 100 Level 1 . | . . . Level 2 . | . . . Level 3 . | . . . Level 4 . | . . . Level 5 . | . . . High Security . | . . . Max Security . | . . . Peak Influence 90 | . 76 90 Initial 22 | . . 22 Average 23 | . 35 19 Influence Increases 482 | . 159 323 Destroy 0b10 Robot/C 340 | . 120 220 Destroy 0b10 Robot/NC 15 | . 10 5 Destroy Leader 82 | . 22 60 Successful Hack 7 | . 5 2 Destroy Structure 23 | . 2 21 Lose Combat Pursuer 15 | . . 15 Influence Decreases 387 | . 105 282 Entered New Map 32 | . . 32 Time Decay 245 | . 105 140 Lost Part 110 | . . 110 Squads Dispatched 5 | . 1 4 Investigation 2 | . . 2 Extermination . | . . . Reinforcement 3 | . 1 2 Assault . | . . . Garrison . | . . . Intercept . | . . . Searches Triggered . | . . . Construction Impeded 1 | . . 1 Haulers Reinforced . | . . . Active Scanning Responses . | . . . Cargo Convoy Interrupts . | . . . Stealth | -11 -10 -9 --------- Run | Yrd Mat Mat Distress Signals . | . . . Communications Jammed . | . . . Distress Signals . | . . . Times Spotted 24 | . 10 14 Peak Tracking Total 7 | . 3 7 Tactical Retreats 1 | . . 1 Traps | -11 -10 -9 ------- Run | Yrd Mat Mat Traps Triggered 1 | . . 1 Indirectly . | . . . Trap Hack Attempts . | . . . Triggered . | . . . Disarmed . | . . . Reprogrammed . | . . . Reused . | . . . Traps Extracted . | . . . Installed . | . . . Triggered . | . . . Machines | -11 -10 -9 ---------- Run | Yrd Mat Mat Machines Disabled . | . . . Max in Single Turn . | . . . Machines Repaired . | . . . Machines Dismantled . | . . . Machines Sabotaged . | . . . Overloaded Fab Kills . | . . . Hacking | -11 -10 -9 --------- Run | Yrd Mat Mat Machines Accessed 6 | . 3 3 Terminals 3 | . 1 2 Fabricators . | . . . Repair Stations 1 | . 1 . Recycling Units 2 | . 1 1 Scanalyzers . | . . . Garrison Access . | . . . Total Hacks 12 | . 5 7 Successful 7 | . 3 4 Failed 5 | . 2 3 Catastrophic . | . . . Database Lockouts . | . . . Manual . | . . . Terminals 7 | . 1 6 Fabricators . | . . . Repair Stations 2 | . 2 . Recycling Units 3 | . 2 1 Scanalyzers . | . . . Garrison Access . | . . . Terminal Hacks 4 | . 1 3 Record 3 | . . 3 Transport Status 1 | . 1 . Fabricator Hacks . | . . . Repair Station Hacks . | . . . Recycling Unit Hacks 3 | . 2 1 Report Inventory 2 | . 1 1 Retrieve Components 1 | . 1 . Scanalyzer . | . . . Garrison Access Hacks . | . . . Unauthorized Hacks . | . . . Terminals . | . . . Fabricators . | . . . Repair Stations . | . . . Recycling Units . | . . . Scanalyzers . | . . . Garrison Access . | . . . Data Cores Recovered . | . . . Used . | . . . Hacking Detections 5 | . 3 2 Full Trace Events 1 | . . 1 Feedback Events . | . . . Feedback Blocked . | . . . Robot Schematics Acquired . | . . . Robots Built . | . . . Authchips . | . . . Time . | . . . Total Robot Build Rating . | . . . Part Schematics Acquired . | . . . Parts Built . | . . . Authchips . | . . . Time . | . . . Total Part Build Rating . | . . . Parts Repaired . | . . . Time . | . . . Parts Recycled . | . . . Recycled Matter . | . . . Retrieved Matter . | . . . Retrieved Components 9 | . 9 . Parts Scanalyzed . | . . . Part Schematics Acquired . | . . . Parts Damaged . | . . . Bothacking | -11 -10 -9 ------------ Run | Yrd Mat Mat Used RIF Installer . | . . . Robots Hacked . | . . . Non-combat . | . . . Combat . | . . . Robot Hacks Applied . | . . . Relay Couplers Released . | . . . Fabnet Peak Effective % . | . . . Robots Rewired . | . . . Allies Hacked . | . . . Hacks Repelled . | . . . Allies | -11 -10 -9 -------- Run | Yrd Mat Mat Total Allies . | . . . Largest Group . | . . . Highest-Rated Group . | . . . Highest-Rated Ally . | . . . Total Orders . | . . . Ally Attacks . | . . . Total Damage . | . . . Kills . | . . . Allies Corrupted . | . . . Allies Melted . | . . . Intel | -11 -10 -9 ------- Run | Yrd Mat Mat Active Infowar (turns) . | . . . Robot Analysis Total . | . . . Derelict Logs Recovered . | . . . Drone Launches . | . . . Drone Recoveries . | . . . Exploration | -11 -10 -9 ------------- Run | Yrd Mat Mat Turns Passed 806 | 76 331 399 Spaces Moved 401 | 62 200 139 Core 23 | 22 . 1 Treads 4 | . . 4 Legs 374 | 40 200 134 Wheels . | . . . Hover . | . . . Flight . | . . . Fastest Speed 50 | 50 120 120 Average Speed 138 | 95 120 183 Slowest Speed 750 | 120 190 750 Overloaded Moves . | . . . Propulsion Burnouts . | . . . Robots Hopped . | . . . Potential Cave-ins . | . . . Cave-ins Triggered . | . . . Exploration Rate (%) 16 | 3 29 17 Regions Visited 2 Branch Regions . Pre-discovered Areas . | . . . Known Exits Taken . | . . . Unknown Exits Taken 2 | 1 1 . Scrap Searched . | . . . Spaces Dug . | . . . Terrain Destroyed 19 | . . 19 Melee . | . . . Projectile . | . . . AOE 19 | . . 19 Terrain Rammed . | . . . Walls Destroyed . | . . . Machines Disabled . | . . . Actions | -11 -10 -9 --------- Run | Yrd Mat Mat Total 543 | 78 246 219 Wait 8 | . 2 6 Move 399 | 61 199 139 Hop . | . . . Pick Up 29 | 11 9 9 Fast Attach 2 | 1 1 . Attach 13 | 5 . 8 Detach 1 | . . 1 Swap 11 | . 5 6 Drop 11 | . 5 6 Fire 69 | . 25 44 Melee . | . . . Ram . | . . . Kick . | . . . Crush . | . . . Escape Stasis . | . . . Rewire . | . . . Trap . | . . . Miscellaneous . | . . . Route ------- -11/Scrapyard -10/Materials -9/Materials History --------- Turn | Location | Event 3 | -11/Scrapyard | Discovered new exit (range 15) 77 | -11/Scrapyard | Entered Materials 318 | -10/Materials | Build established: Mutant 376 | -10/Materials | Discovered new exit (range 16) 408 | -10/Materials | Entered another Materials area 408 | -9/Materials | Evolved 2 slots: Propulsion x1, Utility x1 762 | -9/Materials | Core integrity fell below 50% 791 | -9/Materials | Core integrity fell below 20% 807 | -9/Materials | Destroyed self with Grenade Launcher Last Messages --------------- Y-45 Defender destroyed. Acquired 37 matter. U-05 Engineer builds a Door. System corrupted: Energy discharge (-35). G-34 Mercenary destroyed. Acquired 12 matter. U-05 Engineer lays Concrete. Rocket Launcher destroyed. U-05 Engineer lays Concrete. Lgt. Assault Rifle destroyed. U-05 Engineer lays Concrete. Acquired 1 matter. U-05 Engineer builds a Wall. R-06 Scavenger collects Aluminum Leg. G-34 Mercenary destroyed. R-06 Scavenger collects Lgt. Treads. ALERT: Construction progress impeded, dispatching reinforcements to local area. Destroyed Welding Torch. U-05 Engineer destroyed. Map ----- +----------------------------------------------------+ | ???????????# ######?# # |* !##??????????? | | ############ ### # * #???????????? | | "* #???????????? | | ######### ### =#["T" #???????????? | | #???????# ###+#### # """ #???????????? | | !!!#???????####### #### ##########???????????? | | !!!#?????????????# """ #??# #????????????????????? | | ! #?????????????# "T" #??# #????????????????????? | | #?????????????# #??# #????????????????????? | | #?????????????##########/##???????????????????? | | +????????????????# #???????????????????? | | #????????????????# % [#???????????????????? | | ## #????????????????# #???????????????????? | | ?? #????????????????# #???????????????????? | | ?? #????????????????# #???????????????????? | | ?? #????????????????# o #???????????????????? | | ?? #????????????????# r #???????????????????? | | ?? #????????????????# #???????????????????? | | ??+#???????###+#????# #???????????????????? | | ???????????# ###### ########## ?????????? | | ???????????# r ????????? | | ?????????? T????????? | | ???????????# !%= ????????? | | ???????????# ##### #[############ ?????????? | | ???????????## ??##### ###???????????????????? | | ????????????????# =%@ #???????????????????? | | ????????????# + g %=[ #???????????????????? | | ????????????# # *= #???????????????????? | | ????????????????# #???????????????????? | | ????????????????# #???????????????????? | | ????????????????##### ####???????????????????? | | ????????????????????# ####??????????????????????? | | ????????????????????###??????????????????????????? | | ?????????????????????????????????????????????????? | | ?????????????????????????????????????????????????? | | ?????????????????????????????????????????????????? | | ?????????????????????????????????????????????????? | | ?????????????????????????????????????????????????? | | ?????????????????????????????????????????????????? | | ?????????????????????????????????????????????????? | | ?????????????????????????????????????????????????? | | ?????????????????????????????????????????????????? | | ?????????????????????????????????????????????????? | | ?????????????????????????????????????????????????? | | ?????????????????????????????????????????????????? | | ?????????????????????????????????????????????????? | | ?????????????????????????????????????????????????? | | ?????????????????????????????????????????????????? | | ?????????????????????????????????????????????????? | | ?????????????????????????????????????????????????? | +----------------------------------------------------+ Best States ------------- Heat Dissipation 28 Energy Generation 14 Energy Capacity 280 Matter Stores 300 Matter Capacity 300 Sight Range 16 Terrain Scan Density 10 Additional Mass Support 6 Evasion (%) 55 Targeting Accuracy 6 Recoil Reduction 1 Item Schematics ----------------- None Robot Schematics ------------------ None Fabricated ------------ Nothing Repaired ---------- Nothing Alien Tech Used ----------------- None Achievements -------------- Let's See Who's Tougher Challenges ------------ None Game ------ Seed SiegeScanAutohacker Manual? 0 Play Time 00:12:21 Cumulative 3.7 hours Start 2025.06.05 @ 19:33:40 End 2025.06.05 @ 19:44:53 Sessions 1 Manual Loads 0 Difficulty Rogue Special Mode None Game No. 6 Rogue 6 Adventurer 0 Explorer 0 Win Type - Total 0 Types 0/0/0/0/0/0/0/0/0/0 Lore% 8 Gallery% 10 Achievement% 8 Wizard Run 0 Options --------- Layout 1 ASCII 0 Keyboard 0 Movement Mouse Keybinds 0 Fullscreen 1 Font 32/SmallcapsGlow Map View 50x35 Zoom Use 0% Tactical HUD 0 Map Filters NONE Filters NONE Steam 1 RUN: 4b0a3510-4323-43e8-92aa-5b12b13308de